bitfinex/quotes_SOLUSD_20250805
["timestamp","ask_amount","ask_price","bid_price","bid_amount"]
[1754426383272,12.66435748,162.77,162.76,0.28432314]
[1754426383456,12.66435748,162.77,162.76,6.42833886]
[1754426386126,12.66435748,162.77,162.76,6.28617729]
[1754426386418,12.66435748,162.77,162.76,6.14401572]
[1754426386717,13.37435748,162.77,162.73,6.57163311]
[1754426386908,12.66435748,162.74,162.73,6.57163311]
[1754426387493,12.66435748,162.75,162.73,6.57163311]
[1754426387696,12.66435748,162.74,162.73,6.42947154]
[1754426388281,13.37435748,162.74,162.72,6.20550254]
[1754426388483,13.37435748,162.73,162.72,0.06]
[1754426389890,12.66435748,162.73,162.72,0.06]
[1754426392081,13.37435748,162.73,162.72,0.06]
[1754426395098,19.51950588,162.73,162.72,0.06]
[1754426395714,13.37435748,162.73,162.72,0.06]
[1754426396214,19.51950588,162.73,162.72,0.06]
[1754426397213,13.37435748,162.73,162.72,0.06]
[1754426398003,19.51950588,162.73,162.72,0.06]
[1754426398720,14.79754292,162.73,162.72,0.06]
[1754426398921,8.65239452,162.73,162.72,0.06]
[1754426400189,7.94239452,162.73,162.72,0.06]
[1754426400513,51.58239452,162.73,162.72,0.06]
[1754426400923,51.58239452,162.73,162.72,0.77]
[1754426401121,51.58239452,162.73,162.72,0.06]
[1754426401122,7.94239452,162.73,162.72,0.06]
[1754426402513,7.94239452,162.73,162.72,0.77]
[1754426402717,51.56239452,162.77,162.73,0.28432314]
[1754426402927,51.56239452,162.77,162.74,0.71]
[1754426403134,7.94239452,162.78,162.74,0.71]
[1754426403517,4.09929866,162.78,162.74,0.71]
[1754426403822,12.04169318,162.78,162.74,0.71]
[1754426404620,16.7920903,162.78,162.75,6.14439324]
[1754426404839,12.69279164,162.76,162.75,6.42871638]
[1754426405132,12.69279164,162.76,162.73,0.93432314]
[1754426405133,16.79751193,162.76,162.73,0.65]
[1754426405308,12.69279164,162.75,162.73,6.42943076]
[1754426405512,12.69279164,162.76,162.74,0.65]
[1754426405713,12.69279164,162.75,162.73,6.42943076]
[1754426405910,12.69279164,162.75,162.74,0.65]
[1754426406117,12.69279164,162.75,162.73,6.42943076]
[1754426406415,12.69279164,162.75,162.73,7.07943076]
[1754426407532,12.69279164,162.74,162.73,6.42943076]
[1754426408130,12.69279164,162.74,162.73,0.28432314]
[1754426408331,16.80862185,162.74,162.72,0.06]
[1754426408513,16.80862185,162.73,162.72,0.06]
[1754426408913,17.51862185,162.73,162.72,0.06]
[1754426409512,16.80862185,162.73,162.72,0.06]
[1754426410540,17.51862185,162.73,162.72,0.06]
[1754426411743,23.66377025,162.73,162.72,0.06]
[1754426412529,28.81202354,162.73,162.72,0.06]
[1754426413126,67.50481518,162.73,162.72,0.06]
[1754426413530,26.0,162.71,162.7,0.06]
[1754426413724,86.42862185,162.71,162.7,0.06]
[1754426413934,4.82583021,162.71,162.7,0.06]
[1754426414126,16.80862185,162.71,162.7,0.06]
[1754426416336,23.6645256,162.71,162.7,0.06]
[1754426418744,49.6645256,162.71,162.7,0.06]
[1754426419042,54.53527155,162.71,162.7,0.06]
[1754426420218,75.05081793,162.71,162.62,0.65]
[1754426420419,12.69279164,162.64,162.62,6.79922439]
[1754426420649,12.69279164,162.65,162.63,0.65]
[1754426421022,37.0166497,162.71,162.63,0.93432314]
[1754426421240,12.69279164,162.67,162.63,0.93432314]
[1754426421431,56.31279164,162.69,162.65,0.14216157]
[1754426421743,12.69279164,162.69,162.66,0.65]
[1754426421959,12.69279164,162.69,162.67,6.14741501]
[1754426422136,12.69279164,162.69,162.68,0.65]
[1754426422521,16.80723828,162.69,162.68,0.65]
[1754426422724,190.11865144,162.78,162.68,0.65]
[1754426422725,5.860787,162.77,162.69,0.42648471]
[1754426422939,5.860787,162.77,162.7,0.65]
[1754426422940,12.69279164,162.74,162.7,0.65]
[1754426423946,12.69279164,162.75,162.72,6.14552605]
[1754426424161,12.69279164,162.73,162.69,0.65]
[1754426424323,12.69279164,162.7,162.69,0.65]
[1754426424525,12.69279164,162.71,162.69,0.65]
[1754426424830,12.69279164,162.7,162.69,0.65]
[1754426425039,12.69279164,162.7,162.69,0.71]
[1754426425224,12.69279164,162.7,162.69,0.06]
[1754426425431,43.68,162.73,162.7,6.14628149]
[1754426425432,12.69279164,162.71,162.7,6.14628149]
[1754426425943,12.69279164,162.71,162.7,6.79628149]
[1754426426735,7.94003254,162.71,162.7,0.65]
[1754426426976,7.94003254,162.71,162.69,0.06]
[1754426427126,7.94003254,162.7,162.69,0.06]
[1754426427555,4.11886982,162.72,162.69,0.06]
[1754426427854,7.94003254,162.7,162.69,0.06]
[1754426428237,52.33003254,162.7,162.69,0.06]
[1754426428547,55.73890236,162.7,162.69,0.06]
[1754426429124,51.62003254,162.7,162.69,0.71]
[1754426429351,55.74276976,162.7,162.69,0.71]
[1754426429652,55.74276976,162.7,162.69,0.06]
[1754426430353,56.45276976,162.7,162.69,0.06]
[1754426430661,62.59905125,162.7,162.69,0.06]
[1754426431466,55.74276976,162.7,162.69,0.06]
[1754426432254,47.80273722,162.7,162.69,0.06]
[1754426432459,4.12273722,162.7,162.69,0.71]
[1754426432762,12.7003787,162.73,162.7,6.14628149]
[1754426432933,4.12816468,162.72,162.71,0.65]
[1754426433134,0.03,162.74,162.71,1.07648471]
[1754426433626,0.03,162.74,162.72,0.7]
[1754426434235,0.03,162.74,162.71,0.42648471]
[1754426434430,0.03,162.74,162.73,0.7]
[1754426434957,0.03,162.74,162.73,6.8451484]
[1754426436765,0.03,162.74,162.73,7.27163311]
[1754426437256,0.03,162.74,162.73,19.97201181]
[1754426438380,0.03,162.76,162.74,0.28432314]
[1754426438585,0.03,162.76,162.75,0.84216157]
[1754426438956,12.7003787,162.81,162.76,0.14216157]
[1754426439265,12.7003787,162.8,162.76,0.14216157]
[1754426439481,12.7003787,162.8,162.77,0.7]
[1754426440082,12.7003787,162.81,162.78,0.7]
[1754426440385,12.7003787,162.79,162.76,6.14401572]
[1754426440884,12.7003787,162.79,162.76,6.84401572]
[1754426441081,12.7003787,162.79,162.76,6.14401572]
[1754426441267,12.7003787,162.79,162.77,0.7]
[1754426441465,12.7003787,162.8,162.77,0.7]
[1754426441661,12.7003787,162.81,162.78,0.7]
[1754426441860,12.7003787,162.81,162.77,0.42648471]
[1754426442084,12.7003787,162.81,162.79,0.7]
[1754426442395,12.7003787,162.81,162.8,6.14250614]
[1754426442684,43.68,162.83,162.8,6.14250614]
[1754426442889,12.7003787,162.81,162.8,6.14250614]
[1754426444359,12.7003787,162.82,162.8,6.84250614]
[1754426445668,56.3803787,162.83,162.8,6.84250614]
[1754426446289,12.7003787,162.85,162.81,0.7]
[1754426446465,12.7003787,162.85,162.82,6.84175162]
[1754426447585,56.3203787,162.86,162.83,0.7]
[1754426447868,56.3203787,162.86,162.84,0.7]
[1754426448689,56.3203787,162.86,162.85,6.1406202]
[1754426448891,43.62,162.86,162.85,6.1406202]
[1754426449094,56.3203787,162.86,162.85,6.1406202]
[1754426449890,12.7003787,162.86,162.83,6.14137443]
[1754426450192,12.7003787,162.86,162.83,6.84137443]
[1754426450759,12.7003787,162.86,162.83,6.14137443]
[1754426451209,44.27,162.88,162.84,0.7]
[1754426451397,12.7003787,162.87,162.84,0.7]
[1754426451893,12.7003787,162.87,162.86,6.14024315]
[1754426452193,12.7003787,162.87,162.84,6.14099729]
[1754426452566,12.7003787,162.87,162.84,6.84099729]
[1754426452988,43.6,162.88,162.84,6.84099729]
[1754426453185,12.7003787,162.87,162.84,6.84099729]
[1754426453396,12.7003787,162.87,162.84,6.14099729]
[1754426453782,13.3703787,162.87,162.84,6.14099729]
[1754426454196,13.3703787,162.87,162.83,6.14137443]
[1754426454363,13.3703787,162.87,162.83,6.84137443]
[1754426454677,8.59468612,162.87,162.83,6.84137443]
[1754426455591,7.92468612,162.85,162.83,6.14137443]
[1754426455973,7.92468612,162.86,162.83,6.84137443]
[1754426456972,7.92468612,162.84,162.82,29.34160789]
[1754426457176,7.92468612,162.83,162.82,29.34160789]
[1754426457786,8.59468612,162.83,162.78,23.9]
[1754426457969,7.92468612,162.81,162.78,23.9]
[1754426458174,7.92468612,162.82,162.79,6.84288346]
[1754426458373,7.92468612,162.82,162.79,6.14288346]
[1754426458691,7.92468612,162.82,162.8,0.7]
[1754426458999,7.92468612,162.81,162.79,6.14288346]
[1754426459666,0.67,162.8,162.79,6.14288346]
[1754426459866,8.59468612,162.8,162.76,23.2]
[1754426460169,7.92468612,162.79,162.76,29.34389363]
[1754426460395,7.92468612,162.77,162.73,23.2]
[1754426460708,7.92468612,162.77,162.74,6.57112406]
[1754426460878,7.92468612,162.77,162.74,6.84463935]
[1754426461080,7.92468612,162.76,162.74,6.14463935]
[1754426461316,0.67,162.78,162.74,6.14463935]
[1754426461481,7.92468612,162.78,162.75,0.7]
[1754426461676,7.92468612,162.77,162.76,6.14401572]
[1754426462278,8.59468612,162.77,162.73,23.2]
[1754426462501,7.92468612,162.74,162.73,23.2]
[1754426462678,7.92468612,162.74,162.71,43.56]
[1754426462679,7.92468612,162.74,162.72,6.14552605]
[1754426462882,7.92468612,162.73,162.72,6.14552605]
[1754426463591,7.92468612,162.73,162.7,6.14628149]
[1754426463800,7.92468612,162.73,162.71,0.68]
[1754426464298,7.92468612,162.74,162.71,0.96432314]
[1754426464515,7.92468612,162.74,162.72,0.68]
[1754426464805,7.92468612,162.74,162.73,0.68]
[1754426465101,7.92468612,162.74,162.71,1.10648471]
[1754426465276,7.92468612,162.74,162.72,0.68]
[1754426465774,14.06730634,162.8,162.71,0.42648471]
[1754426465775,4.09524218,162.79,162.74,0.42648471]
[1754426465976,7.92468612,162.78,162.75,0.68]
[1754426466292,7.92468612,162.78,162.76,0.68]
[1754426466498,7.92468612,162.78,162.75,0.68]
[1754426467281,7.92468612,162.79,162.76,0.68]
[1754426467605,44.28,162.84,162.78,6.14326084]
[1754426467781,7.92468612,162.81,162.78,6.14326084]
[1754426468187,7.92468612,162.81,162.78,6.82326084]
[1754426468675,7.92468612,162.81,162.78,6.14326084]
[1754426468877,0.03,162.79,162.78,6.14326084]
[1754426469098,0.03,162.79,162.78,6.82326084]
[1754426469904,0.03,162.79,162.78,6.14326084]
[1754426470606,0.03,162.79,162.78,6.82326084]
[1754426471923,0.03,162.79,162.78,15.17443167]
[1754426472212,7.92468612,162.86,162.79,0.28432314]
[1754426472406,7.92468612,162.86,162.81,7.92468612]
[1754426472604,7.92468612,162.86,162.82,0.68]
[1754426473286,7.92468612,162.83,162.78,21.50141294]
[1754426473600,7.92468612,162.82,162.79,0.42648471]
[1754426474100,7.92468612,162.82,162.8,6.14250614]
[1754426475505,7.92468612,162.83,162.8,6.14250614]
[1754426475710,7.92468612,162.83,162.8,6.82250614]
[1754426476111,4.10640891,162.87,162.81,9.03117083]
[1754426476412,7.92468612,162.88,162.83,7.92468612]
[1754426476618,4.10640891,162.88,162.84,0.68]
[1754426476803,8.62468612,162.88,162.84,0.68]
[1754426476996,8.62468612,162.88,162.83,7.92468612]
[1754426477323,7.92468612,162.88,162.84,0.68]
[1754426478403,12.03109503,162.89,162.85,6.8206202]
[1754426478604,7.92468612,162.89,162.85,6.8206202]
[1754426479819,8.62468612,162.9,162.86,0.68]
[1754426480334,4.11343901,162.91,162.88,0.42648471]
[1754426480494,7.92468612,162.93,162.89,0.68]
[1754426480694,0.9,162.94,162.89,0.68]
[1754426481024,8.82468612,162.94,162.89,0.68]
[1754426481192,0.2,162.94,162.9,9.03117083]
[1754426481392,0.2,162.94,162.9,8.74684769]
[1754426481619,8.12468612,162.94,162.9,1.10648471]
[1754426482102,0.2,162.94,162.92,0.14216157]
[1754426482290,0.2,162.94,162.93,6.1376051]
[1754426483607,8.82468612,162.94,162.88,0.42648471]
[1754426483812,7.92468612,162.92,162.88,0.42648471]
[1754426484015,0.7,162.93,162.88,0.42648471]
[1754426484334,7.92468612,162.92,162.88,1.10648471]
[1754426484641,8.62468612,162.91,162.88,6.5659739]
[1754426484802,7.92468612,162.9,162.88,6.13948919]
[1754426485422,8.62468612,162.9,162.88,6.13948919]
[1754426486005,8.62468612,162.89,162.88,6.13948919]
[1754426486232,7.92468612,162.89,162.88,6.13948919]
[1754426486824,7.92468612,162.89,162.85,43.98648471]
[1754426486825,12.67532604,162.89,162.86,6.56672786]
[1754426487227,12.67532604,162.9,162.86,7.24672786]
[1754426487410,0.2,162.94,162.87,0.68]
[1754426487727,12.67532604,162.91,162.87,23.88]
[1754426488232,0.7,162.93,162.87,23.88]
[1754426488399,12.67532604,162.91,162.88,1.10648471]
[1754426488603,12.67532604,162.91,162.9,6.13873542]
[1754426489804,12.67532604,162.91,162.89,6.13910461]
[1754426490003,0.7,162.93,162.89,6.13910461]
[1754426490004,12.67532604,162.9,162.89,6.13910461]
[1754426490213,12.67532604,162.9,162.89,29.48126618]
[1754426490612,12.67532604,162.9,162.89,29.62342775]
[1754426490930,13.37532604,162.9,162.89,23.2]
[1754426491249,13.37532604,162.9,162.87,6.13961976]
[1754426491410,12.67532604,162.88,162.85,23.2]
[1754426491610,12.67532604,162.86,162.85,23.2]
[1754426491917,12.67532604,162.86,162.85,29.34047211]
[1754426492228,12.67532604,162.86,162.85,29.48263368]
[1754426492729,12.67532604,162.86,162.85,29.62479525]
[1754426493126,12.67532604,162.86,162.85,29.76695682]
[1754426494430,13.38532604,162.86,162.85,23.2]
[1754426494930,13.38532604,162.86,162.82,23.2]
[1754426495104,12.67532604,162.83,162.82,23.2]
[1754426497940,12.67532604,162.83,162.82,29.34175162]
[1754426498403,15.34690393,162.9,162.82,29.34175162]
[1754426498404,12.67532604,162.84,162.83,0.42648471]
[1754426498614,12.67532604,162.85,162.83,1.11648471]
[1754426498933,12.67532604,162.86,162.84,0.69]
[1754426499117,26.0,162.88,162.85,6.1406202]
[1754426499304,12.67532604,162.86,162.85,6.1406202]
[1754426500035,12.67532604,162.86,162.84,6.14085106]
[1754426500331,12.67532604,162.85,162.84,6.56733577]
[1754426501824,12.67532604,162.86,162.84,7.25733577]
[1754426502210,12.67532604,162.85,162.84,6.56733577]
[1754426504434,12.67532604,162.85,162.83,6.14131072]
[1754426504618,13.38532604,162.84,162.82,23.2]
[1754426504808,13.38532604,162.83,162.82,23.2]
[1754426507228,12.67532604,162.83,162.82,23.2]
[1754426507737,12.67532604,162.83,162.81,6.14208455]
[1754426507906,12.67532604,162.82,162.8,6.14236458]
[1754426508110,12.67532604,162.81,162.8,6.14236458]
[1754426508724,12.67532604,162.81,162.79,6.8328192]
[1754426509039,12.67532604,162.8,162.79,7.25930391]
[1754426509420,12.67532604,162.8,162.78,6.20315519]
[1754426509629,12.67532604,162.79,162.78,29.8296399]
[1754426510433,12.67532604,162.79,162.78,30.5196399]
[1754426510627,7.93226632,162.79,162.78,30.5196399]
[1754426511641,7.93226632,162.81,162.79,0.42648471]
[1754426511815,7.93226632,162.81,162.79,1.11648471]
[1754426512427,7.93226632,162.8,162.79,1.11648471]
[1754426512630,7.93226632,162.8,162.79,0.42648471]
[1754426513134,7.93226632,162.8,162.79,1.11648471]
[1754426513638,7.93226632,162.8,162.79,23.2]
[1754426515241,7.93226632,162.8,162.79,29.34288346]
[1754426516723,7.93226632,162.8,162.79,23.2]
[1754426518046,7.93226632,162.8,162.79,29.34288346]
[1754426519149,7.93226632,162.8,162.79,30.03288346]
[1754426519641,7.93226632,162.8,162.79,6.83288346]
[1754426520546,6.85139848,162.83,162.79,6.14288346]
[1754426520744,7.93226632,162.8,162.79,6.14288346]
[1754426521724,30.1044403,162.83,162.79,7.25936817]
[1754426521921,7.93226632,162.81,162.8,0.69]
[1754426522821,7.93226632,162.81,162.79,6.56936817]
[1754426523052,7.93226632,162.8,162.79,7.25936817]
[1754426525047,7.93226632,162.81,162.79,7.25936817]
[1754426525238,7.93226632,162.81,162.79,6.56936817]
[1754426525421,7.93226632,162.81,162.8,6.85250614]
[1754426527071,7.93226632,162.81,162.8,6.14250614]
[1754426528638,8.59226632,162.81,162.79,29.76926875]
[1754426528956,7.93226632,162.8,162.79,29.76926875]
[1754426529157,4.76805534,162.83,162.79,29.76926875]
[1754426529362,7.93226632,162.8,162.79,29.76926875]
[1754426529673,7.93226632,162.8,162.79,30.47926875]
[1754426530765,7.93226632,162.82,162.8,0.14216157]
[1754426531063,7.93226632,162.82,162.81,0.85216157]
[1754426531240,7.93226632,162.83,162.81,0.85216157]
[1754426531440,7.93226632,162.83,162.82,0.71]
[1754426532157,7.93226632,162.84,162.83,0.14216157]
[1754426532355,12.05008415,162.85,162.83,6.28332808]
[1754426532558,7.93226632,162.84,162.83,6.28332808]
[1754426534560,8.59226632,162.84,162.83,6.28332808]
[1754426534751,8.59226632,162.84,162.82,6.14170905]
[1754426534952,7.93226632,162.83,162.82,6.28387062]
[1754426535549,12.05296284,162.83,162.82,6.28387062]
[1754426535753,7.93226632,162.83,162.82,6.28387062]
[1754426536945,26.0,162.86,162.83,0.14216157]
[1754426537147,43.3,162.89,162.84,0.85216157]
[1754426537363,12.06162095,162.88,162.84,0.85216157]
[1754426537572,4.12935463,162.87,162.84,0.85216157]
[1754426537869,7.93226632,162.88,162.84,0.85216157]
[1754426538078,4.12916873,162.89,162.86,0.14216157]
[1754426538245,7.93226632,162.89,162.88,0.14216157]
[1754426538444,12.06143505,162.89,162.86,0.14216157]
[1754426538663,7.93226632,162.87,162.86,0.14216157]
[1754426539041,7.93226632,162.88,162.86,0.14216157]
[1754426539480,7.93226632,162.87,162.86,0.14216157]
[1754426540344,7.93226632,162.88,162.86,6.28208897]
[1754426540570,4.12916873,162.89,162.87,0.71]
[1754426540781,0.03,162.9,162.88,0.71]
[1754426540782,12.09143505,162.9,162.88,0.71]
[1754426541451,12.09143505,162.9,162.86,6.99208897]
[1754426541774,12.09143505,162.9,162.87,0.71]
[1754426542163,7.96226632,162.9,162.87,0.71]
[1754426542352,7.96226632,162.9,162.87,6.84949157]
[1754426542852,7.96226632,162.9,162.88,0.71]
[1754426543064,0.03,162.9,162.88,0.71]
[1754426543800,0.03,162.9,162.89,0.85216157]
[1754426543948,0.03,162.9,162.89,1.13648471]
[1754426544142,0.03,162.9,162.89,24.1749666]
[1754426544588,0.03,162.9,162.89,30.31407888]
[1754426544875,0.2,162.94,162.93,0.28432314]
[1754426545079,0.2,162.94,162.93,0.99432314]
[1754426546549,0.2,162.94,162.93,7.13192824]
[1754426546965,0.2,162.94,162.93,15.06419456]
[1754426547153,0.2,162.94,162.93,30.3125717]
[1754426547357,1e-08,162.94,162.93,30.3125717]
[1754426550092,1e-08,162.94,162.93,6.56408981]
[1754426550402,1e-08,162.94,162.93,6.1376051]
[1754426550560,1e-08,162.94,162.93,6.27976667]
[1754426553388,1e-08,162.94,162.93,38.40635613]
[1754426553606,1e-08,162.94,162.93,79.5125717]
[1754426553813,1e-08,162.94,162.93,122.8125717]
[1754426554113,1e-08,162.94,162.93,45.58030538]
[1754426554312,1e-08,162.94,162.93,72.77976667]
[1754426554629,1e-08,162.94,162.93,73.06408981]
[1754426556924,1e-08,162.94,162.93,29.76408981]
[1754426558024,1e-08,162.94,162.93,6.56408981]
[1754426559622,7.93226633,162.94,162.93,6.27976667]
[1754426560526,1e-08,162.94,162.93,6.27976667]
[1754426563733,8.64226633,162.94,162.93,23.2]
[1754426563908,0.71000001,162.94,162.93,23.2]
[1754426564111,1e-08,162.94,162.93,29.3376051]
[1754426564325,7.93226633,162.94,162.93,29.3376051]
[1754426564508,1e-08,162.94,162.93,29.47976667]
[1754426564823,8.64226633,162.94,162.93,23.2]
[1754426565322,14.77952792,162.94,162.88,29.33933564]
[1754426565523,7.93226632,162.89,162.88,23.2]
[1754426566098,7.93226632,162.89,162.88,23.34216157]
[1754426567098,7.93226632,162.89,162.88,29.48165076]
[1754426568204,6.13737456,162.94,162.89,0.42648471]
[1754426568205,1e-08,162.94,162.89,0.42648471]
[1754426568424,7.93226632,162.92,162.91,0.14216157]
[1754426568730,7.93226632,162.92,162.91,6.28052017]
[1754426571635,7.93226632,162.92,162.91,6.99052017]
[1754426572038,7.93226632,162.93,162.91,6.99052017]
[1754426572332,1e-08,162.94,162.93,0.14216157]
[1754426572512,1e-08,162.94,162.93,23.4649666]
[1754426572711,1e-08,162.94,162.93,24.1749666]
[1754426573742,1e-08,162.94,162.93,30.3125717]
[1754426573931,1e-08,162.94,162.93,22.38030538]
[1754426574732,0.71000001,162.94,162.93,6.56408981]
[1754426574910,7.93226633,162.94,162.92,6.13786429]
[1754426575109,7.93226632,162.93,162.92,6.13786429]
[1754426575424,7.93226632,162.93,162.92,6.28002586]
[1754426575625,1e-08,162.94,162.92,6.28002586]
[1754426575928,7.93226633,162.94,162.92,6.28002586]
[1754426576439,7.93226633,162.94,162.92,6.13786429]
[1754426577025,7.93226633,162.94,162.92,6.84786429]
[1754426578641,7.93226633,162.94,162.92,30.04786429]
[1754426579348,1e-08,162.94,162.93,1.13648471]
[1754426580443,1e-08,162.94,162.93,43.66648471]
[1754426580645,1e-08,162.94,162.93,30.47408981]
[1754426580951,1e-08,162.94,162.93,73.00408981]
[1754426581935,1e-08,162.94,162.93,73.71408981]
[1754426582119,1e-08,162.94,162.93,96.7525717]
[1754426582515,1e-08,162.94,162.93,88.82030538]
[1754426582739,1e-08,162.94,162.93,96.78257138]
[1754426585429,1e-08,162.94,162.93,104.7148377]
[1754426586723,1e-08,162.94,162.93,96.78257138]
[1754426586922,1e-08,162.94,162.93,96.07257138]
[1754426587120,1e-08,162.94,162.93,96.78257138]
[1754426587540,1e-08,162.94,162.93,96.07257138]
[1754426587921,1e-08,162.94,162.93,96.78257138]
[1754426588751,1e-08,162.94,162.93,80.96635581]
[1754426588953,7.93226633,162.94,162.93,72.86192824]
[1754426589157,8.64226633,162.94,162.93,23.2]
[1754426589528,8.64226633,162.94,162.91,29.33822932]
[1754426589529,12.76835404,162.94,162.91,29.33822932]
[1754426589732,7.93226632,162.92,162.91,29.33822932]
[1754426589937,7.93226632,162.92,162.91,29.76471403]
[1754426590559,8.64226632,162.92,162.9,6.13862755]
[1754426590728,7.93226632,162.92,162.9,43.28]
[1754426592940,7.93226632,162.92,162.91,6.1383586]
[1754426595137,12.05802218,162.92,162.91,6.1383586]
[1754426595337,7.93226632,162.92,162.91,6.1383586]
[1754426595859,12.05811188,162.93,162.92,0.14216157]
[1754426596055,7.93226632,162.93,162.92,0.14216157]
[1754426596454,7.93226632,162.93,162.92,23.34216157]
[1754426596954,7.93226632,162.93,162.92,29.4801434]
[1754426599268,12.05749327,162.93,162.92,29.4801434]
[1754426599572,12.76749327,162.93,162.92,23.2]
[1754426600833,12.76749327,162.93,162.92,29.33798183]
[1754426601042,12.05749327,162.93,162.92,29.33798183]
[1754426601332,12.05774623,162.93,162.92,29.33798183]
[1754426601647,4.12547991,162.93,162.92,29.33798183]
[1754426601840,7.93226632,162.93,162.92,29.33798183]
[1754426602434,7.93226632,162.93,162.92,6.13798183]
[1754426602636,12.05798803,162.93,162.92,6.13798183]
[1754426603433,12.05798803,162.93,162.91,6.28052017]
[1754426604474,12.05798803,162.93,162.9,72.67860314]
[1754426604475,8.64226632,162.92,162.9,72.67860314]
[1754426604777,12.76798803,162.91,162.9,0.06]
[1754426606282,12.05798803,162.91,162.9,0.06]
[1754426606570,7.93226632,162.91,162.9,0.06]
[1754426606745,12.05798803,162.91,162.9,0.06]
[1754426606946,7.93226632,162.91,162.9,0.06]
[1754426607146,12.05798803,162.91,162.9,0.06]
[1754426607454,7.93226632,162.91,162.9,0.06]
[1754426607837,12.05580346,162.91,162.9,0.06]
[1754426608034,7.93226632,162.91,162.9,0.06]
[1754426608254,12.05580346,162.91,162.9,0.06]
[1754426609153,7.93226632,162.91,162.9,0.06]
[1754426609353,12.05580346,162.91,162.9,0.06]
[1754426609555,7.93226632,162.91,162.9,0.06]
[1754426609754,4.12353714,162.91,162.9,0.91216157]
[1754426609958,7.93226632,162.92,162.9,0.91216157]
[1754426610265,7.93226633,162.94,162.92,0.42648471]
[1754426610470,7.93226633,162.94,162.93,0.85216157]
[1754426610781,1e-08,162.94,162.93,6.98976667]
[1754426612153,7.93226633,162.94,162.93,6.27976667]
[1754426615145,12.76886028,162.94,162.91,23.2]
[1754426615351,12.76886028,162.94,162.91,29.48048615]
[1754426615352,7.93226632,162.92,162.91,29.48048615]
[1754426615678,12.05886027,162.92,162.91,29.48048615]
[1754426615852,12.05886027,162.92,162.91,30.18048615]
[1754426616247,7.93226632,162.92,162.91,30.18048615]
[1754426616479,12.05886027,162.92,162.91,30.18048615]
[1754426616941,7.93226632,162.92,162.91,30.18048615]
[1754426617144,12.05886027,162.92,162.91,30.18048615]
[1754426617450,7.93226632,162.92,162.91,30.18048615]
[1754426617648,12.05886027,162.92,162.91,30.18048615]
[1754426617849,7.93226632,162.92,162.91,30.18048615]
[1754426618080,12.05886027,162.92,162.91,30.18048615]
[1754426618575,4.12659395,162.93,162.91,30.18048615]
[1754426618745,7.93226632,162.93,162.92,0.7]
[1754426619153,12.0626944,162.93,162.92,0.7]
[1754426619657,12.0626944,162.93,162.91,30.18048615]
[1754426619968,4.13022176,162.92,162.91,29.48048615]
[1754426620354,12.06248808,162.92,162.91,29.48048615]
[1754426620548,8.64226632,162.92,162.91,29.48048615]
[1754426620868,12.06248808,162.92,162.91,29.48048615]
[1754426621252,7.93226632,162.92,162.91,29.48048615]
[1754426621453,12.06248808,162.92,162.91,29.48048615]
[1754426621679,7.93226632,162.92,162.91,29.48048615]
[1754426621978,12.06248808,162.92,162.91,29.48048615]
[1754426622199,7.93226632,162.92,162.91,29.48048615]
[1754426622365,12.06248808,162.92,162.91,29.48048615]
[1754426622688,12.06248808,162.92,162.9,6.19863909]
[1754426622689,12.77248808,162.92,162.9,6.19863909]
[1754426622858,12.77248808,162.91,162.9,0.06]
[1754426623944,20.7047544,162.91,162.9,0.06]
[1754426625273,26.0,162.89,162.88,0.06]
[1754426625571,43.21058612,162.89,162.88,0.06]
[1754426625878,38.76625142,162.89,162.81,43.94]
[1754426626089,7.93226632,162.82,162.81,50.22429043]
[1754426626387,7.93226632,162.83,162.82,0.14216157]
[1754426626887,7.93226632,162.83,162.82,0.84216157]
[1754426627089,7.93226632,162.83,162.82,6.98391319]
[1754426628485,7.93226632,162.83,162.82,6.28391319]
[1754426629168,7.93226632,162.83,162.82,6.14175162]
[1754426629494,7.93226632,162.83,162.81,6.14197784]
[1754426629714,7.93226632,162.82,162.81,6.28413941]
[1754426629870,7.93226632,162.82,162.81,6.98413941]
[1754426630072,0.71,162.85,162.81,6.98413941]
[1754426630390,7.93226632,162.82,162.81,6.98413941]
[1754426631382,7.93226632,162.82,162.81,0.14216157]
[1754426631592,8.64226632,162.82,162.78,29.40321766]
[1754426631888,7.93226632,162.79,162.78,0.06]
[1754426632297,8.64226632,162.79,162.78,0.06]
[1754426632677,12.75809609,162.79,162.78,0.06]
[1754426633190,8.64226632,162.79,162.78,0.06]